bitfinex-derivatives/quotes_BTCF0:USTF0_20210707
["timestamp","ask_amount","ask_price","bid_price","bid_amount"]
[1625673616895,0.8499,34521.0,34520.0,1.31718088]
[1625673617047,0.8183,34521.0,34520.0,1.31718088]
[1625673617208,0.8183,34521.0,34520.0,1.40308088]
[1625673617346,0.7551,34521.0,34520.0,1.40308088]
[1625673617501,0.002,34522.0,34520.0,1.40308088]
[1625673617655,0.002,34522.0,34520.0,1.90308088]
[1625673617803,0.003,34527.0,34520.0,1.90308088]
[1625673617947,0.003,34527.0,34526.0,0.48115088]
[1625673618096,0.004,34532.0,34526.0,0.98115088]
[1625673618249,1.17890297,34533.0,34526.0,0.98115088]
[1625673618399,1.17890297,34533.0,34526.0,1.48115088]
[1625673618551,1.51602067,34539.0,34526.0,2.69816514]
[1625673618552,1.18114777,34539.0,34526.0,2.69816514]
[1625673618699,1.09284777,34539.0,34526.0,2.69816514]
[1625673618850,1.35101915,34544.0,34528.0,1.35472119]
[1625673618998,1.35160952,34546.0,34529.0,1.8546555]
[1625673619148,1.35160952,34546.0,34529.0,1.85965199]
[1625673619298,0.004,34533.0,34529.0,1.85965199]
[1625673619449,0.004,34533.0,34530.0,1.35458359]
[1625673619599,0.005,34538.0,34531.0,0.5]
[1625673619898,0.005,34538.0,34537.0,0.72172632]
[1625673620054,0.005,34538.0,34537.0,1.49180632]
[1625673622227,0.24057544,34548.0,34537.0,0.99180632]
[1625673622379,0.24057544,34548.0,34538.0,0.0858]
[1625673622677,0.24057544,34548.0,34538.0,0.5858]
[1625673622975,0.24057544,34548.0,34538.0,0.5]
[1625673623125,0.24057544,34548.0,34532.0,0.0856]
[1625673623275,1.34243,34542.0,34527.0,1.35040181]
[1625673623576,1.34243,34542.0,34526.0,0.24057544]
[1625673624036,0.48115088,34527.0,34526.0,0.24057544]
[1625673624175,0.82254088,34527.0,34526.0,0.24057544]
[1625673624326,0.82254088,34527.0,34522.0,0.24057544]
[1625673624484,0.82254088,34527.0,34518.0,1.59049337]
[1625673624629,0.82254088,34527.0,34518.0,0.24057544]
[1625673625378,0.001,34520.0,34518.0,0.24057544]
[1625673625532,0.31685,34520.0,34518.0,0.24057544]
[1625673625980,0.48115088,34519.0,34518.0,0.24057544]
[1625673628384,0.48115088,34519.0,34518.0,0.24557544]
[1625673628541,0.48115088,34519.0,34518.0,0.74557544]
[1625673630862,0.48115088,34519.0,34518.0,0.24557544]
[1625673631012,0.74970088,34519.0,34518.0,0.24557544]
[1625673637250,0.74970088,34519.0,34518.0,0.583567]
[1625673637396,0.74970088,34519.0,34518.0,0.579567]
[1625673639125,0.74970088,34519.0,34518.0,0.24157544]
[1625673640035,0.74970088,34519.0,34518.0,0.57975784]
[1625673640489,0.74970088,34519.0,34518.0,0.24157544]
[1625673641079,0.74970088,34519.0,34518.0,0.001]
[1625673641229,0.74970088,34519.0,34518.0,0.33925233]
[1625673641530,0.74970088,34519.0,34518.0,0.001]
[1625673641981,1.08553708,34519.0,34518.0,0.001]
[1625673642130,0.74970088,34519.0,34518.0,0.001]
[1625673642283,0.99027632,34519.0,34518.0,0.001]
[1625673642882,1.32605744,34519.0,34518.0,0.001]
[1625673643482,1.66074026,34519.0,34518.0,0.001]
[1625673643631,2.83358886,34519.0,34518.0,0.001]
[1625673644157,2.83358886,34519.0,34501.0,0.59844729]
[1625673644307,0.057,34518.0,34501.0,0.59844729]
[1625673644463,0.057,34518.0,34498.0,0.005]
[1625673644607,0.01314338,34517.0,34498.0,0.005]
[1625673645657,1.00432724,34511.0,34498.0,1.02050379]
[1625673645817,0.057,34510.0,34498.0,1.02050379]
[1625673645958,1.06109723,34510.0,34497.0,0.75432905]
[1625673646108,1.06109723,34510.0,34496.0,1.01556145]
[1625673646109,1.00377936,34509.0,34496.0,1.01556145]
[1625673646258,0.72172632,34497.0,34496.0,1.02056145]
[1625673646421,1.07076632,34497.0,34496.0,0.005]
[1625673652942,1.07076632,34497.0,34489.0,0.24057544]
[1625673654144,0.87076632,34497.0,34489.0,0.24057544]
[1625673655278,0.87076632,34497.0,34496.0,0.005]
[1625673659246,0.87076632,34497.0,34494.0,0.001]
[1625673659546,0.87076632,34497.0,34485.0,0.24057544]
[1625673659696,0.87076632,34497.0,34484.0,1.355862]
[1625673659999,0.87076632,34497.0,34484.0,0.003]
[1625673660145,4.6954,34488.0,34484.0,0.003]
[1625673660304,0.72172632,34485.0,34484.0,0.003]
[1625673660448,0.77872632,34485.0,34484.0,0.003]
[1625673662333,0.77872632,34485.0,34483.0,0.003]
[1625673664348,0.24057544,34484.0,34483.0,0.003]
[1625673664499,0.29757544,34484.0,34483.0,0.003]
[1625673668330,0.29757544,34484.0,34480.0,0.001]
[1625673670430,0.24057544,34481.0,34480.0,0.001]
[1625673670582,0.64265544,34481.0,34480.0,0.001]
[1625673672836,0.29757544,34481.0,34480.0,0.001]
[1625673673435,0.29757544,34481.0,34480.0,0.00601251]
[1625673673584,0.29757544,34481.0,34480.0,0.001]
[1625673673887,0.29757544,34481.0,34480.0,0.00601249]
[1625673675923,0.24057544,34481.0,34480.0,0.00601249]
[1625673676063,0.24057544,34481.0,34480.0,1.01654444]
[1625673676368,0.24057544,34481.0,34480.0,2.9428594]
[1625673676663,0.24057544,34481.0,34480.0,3.79018993]
[1625673676815,0.24057544,34481.0,34480.0,2.4428594]
[1625673677413,0.24057544,34481.0,34480.0,2.4418594]
[1625673678168,0.24057544,34481.0,34480.0,3.78915687]
[1625673679820,0.24057544,34481.0,34480.0,4.28915687]
[1625673680721,0.20897544,34481.0,34480.0,4.28915687]
[1625673681029,0.17737544,34481.0,34480.0,4.28915687]
[1625673681470,0.14577544,34481.0,34480.0,4.28915687]
[1625673681770,0.14577544,34481.0,34480.0,5.80752599]
[1625673682229,0.14577544,34481.0,34480.0,5.30752599]
[1625673682521,0.14577544,34481.0,34480.0,4.02973231]
[1625673683349,0.14577544,34481.0,34480.0,4.52973231]
[1625673683956,0.14577544,34481.0,34480.0,6.04836757]
[1625673684259,0.14577544,34481.0,34480.0,6.07986757]
[1625673685757,0.11417544,34481.0,34480.0,6.07986757]
[1625673687410,0.08257544,34481.0,34480.0,6.07986757]
[1625673687561,0.01937544,34481.0,34480.0,6.07986757]
[1625673687863,0.24157544,34484.0,34480.0,6.07986757]
[1625673688159,0.24157544,34484.0,34483.0,3.54873723]
[1625673688609,0.24157544,34484.0,34483.0,5.31046112]
[1625673688761,0.24157544,34484.0,34483.0,5.31547207]
[1625673688911,0.24157544,34484.0,34483.0,5.81547207]
[1625673690411,0.24157544,34484.0,34483.0,5.31547207]
[1625673695972,0.24157544,34484.0,34483.0,5.34697207]
[1625673697483,0.20997544,34484.0,34483.0,5.34697207]
[1625673697624,0.001,34484.0,34483.0,5.43377207]
[1625673697775,0.001,34484.0,34483.0,5.34697207]
[1625673697924,0.002,34489.0,34483.0,5.34697207]
[1625673698225,0.002,34489.0,34488.0,3.56364275]
[1625673698375,0.24057544,34491.0,34488.0,3.56364275]
[1625673698679,0.24057544,34491.0,34490.0,3.80464699]
[1625673698981,0.24057544,34491.0,34490.0,3.80965416]
[1625673699126,0.29757544,34491.0,34490.0,3.56907872]
[1625673699276,0.29757544,34491.0,34490.0,1.02331333]
[1625673699426,0.29757544,34491.0,34490.0,0.00500717]
[1625673699587,0.29757544,34491.0,34489.0,1.01841629]
[1625673699728,0.54148544,34491.0,34489.0,0.50921418]
[1625673700027,0.62476561,34491.0,34486.0,1.01848644]
[1625673700478,0.99764881,34490.0,34485.0,1.01986403]
[1625673700631,0.48115088,34486.0,34485.0,1.01986403]
[1625673700778,0.53815088,34486.0,34485.0,1.01986403]
[1625673700927,0.53815088,34486.0,34478.0,1.82269605]
[1625673700928,5.74525088,34486.0,34484.0,1.01979437]
[1625673701231,5.74525088,34486.0,34485.0,0.00500938]
[1625673701532,5.74525088,34486.0,34484.0,1.01977844]
[1625673701833,5.74525088,34486.0,34485.0,1.02071293]
[1625673702733,5.74525088,34486.0,34485.0,1.02572227]
[1625673703408,5.74525088,34486.0,34485.0,2.21635066]
[1625673704011,5.74525088,34486.0,34485.0,3.57780772]
[1625673704310,5.74525088,34486.0,34485.0,4.25852803]
[1625673704987,5.74525088,34486.0,34485.0,2.89707097]
[1625673705737,5.74525088,34486.0,34485.0,4.25856375]
[1625673705965,5.74525088,34486.0,34485.0,2.89707097]
[1625673706271,5.74525088,34486.0,34485.0,4.25891023]
[1625673706562,5.74525088,34486.0,34485.0,2.89707097]
[1625673707763,5.74525088,34486.0,34485.0,4.2589283]
[1625673709116,5.74525088,34486.0,34485.0,2.89707097]
[1625673709716,5.74525088,34486.0,34485.0,2.89206163]
[1625673709869,5.74525088,34486.0,34485.0,1.70143324]
[1625673710166,5.74525088,34486.0,34485.0,2.89325389]
[1625673710614,6.41113002,34486.0,34485.0,1.70143324]
[1625673710926,5.74525088,34486.0,34485.0,2.89319782]
[1625673712268,5.74525088,34486.0,34485.0,2.89823129]
[1625673712568,5.74525088,34486.0,34485.0,4.26034162]
[1625673713772,5.74525088,34486.0,34485.0,2.89319782]
[1625673714071,5.74525088,34486.0,34485.0,4.26039872]
[1625673714224,5.74525088,34486.0,34485.0,2.89823119]
[1625673714375,5.74525088,34486.0,34485.0,2.89319782]
[1625673714523,5.74525088,34486.0,34485.0,4.25543361]
[1625673714675,5.74525088,34486.0,34485.0,4.26046707]
[1625673715349,5.74525088,34486.0,34485.0,4.25543361]
[1625673715651,5.74525088,34486.0,34485.0,4.26046703]
[1625673716701,5.68825088,34486.0,34485.0,4.26046703]
[1625673716851,0.48115088,34486.0,34485.0,4.26046703]
[1625673717003,0.48115088,34486.0,34485.0,4.51659703]
[1625673717978,0.48115088,34486.0,34485.0,6.0491302]
[1625673719191,0.44955088,34486.0,34485.0,6.0491302]
[1625673720691,0.20897544,34486.0,34485.0,6.28970564]
[1625673722185,0.17737544,34486.0,34485.0,6.28970564]
[1625673722334,0.11417544,34486.0,34485.0,6.28970564]
[1625673722484,0.11417544,34486.0,34485.0,6.32120564]
[1625673722634,0.001,34489.0,34485.0,8.02381654]
[1625673722934,0.001,34489.0,34488.0,5.78873863]
[1625673723392,0.001,34489.0,34488.0,5.79377076]
[1625673723837,0.001,34489.0,34488.0,5.82527076]
[1625673724138,0.24057544,34491.0,34488.0,5.82527076]
[1625673724437,0.24057544,34491.0,34490.0,5.78817526]
[1625673724661,0.24057544,34491.0,34490.0,6.0287507]
[1625673724814,0.20897544,34491.0,34490.0,6.03378257]
[1625673725112,0.9607,34493.0,34490.0,6.03378257]
[1625673725270,0.002,34495.0,34492.0,5.7877022]
[1625673725411,0.002,34495.0,34492.0,6.0862522]
[1625673725562,0.8293,34496.0,34494.0,3.74455532]
[1625673725717,0.7843,34496.0,34494.0,5.78704004]
[1625673725863,0.7843,34496.0,34495.0,5.78686739]
[1625673726016,0.60824695,34506.0,34495.0,5.78686739]
[1625673726164,1.0043321,34509.0,34495.0,7.49381349]
[1625673726324,1.00875724,34510.0,34507.0,1.02044042]
[1625673726466,1.00875724,34510.0,34507.0,1.32915042]
[1625673726614,0.005,34510.0,34507.0,2.51963688]
[1625673726763,0.005,34510.0,34507.0,3.2413632]
[1625673726914,0.005,34510.0,34507.0,4.60188266]
[1625673727969,0.005,34510.0,34507.0,3.2413632]
[1625673728119,0.005,34510.0,34507.0,4.60181306]
[1625673728269,0.005,34510.0,34507.0,4.60684263]
[1625673728419,0.9332,34508.0,34507.0,4.60684263]
[1625673728725,0.87,34508.0,34507.0,4.63834263]
[1625673728869,0.005,34510.0,34507.0,4.63834263]
[1625673729169,0.24057544,34512.0,34507.0,4.63834263]
[1625673729170,0.24057544,34512.0,34509.0,3.56795618]
[1625673729328,0.24057544,34512.0,34511.0,2.20874498]
[1625673729925,0.24057544,34515.0,34511.0,2.20874498]
[1625673730071,0.24057544,34515.0,34511.0,2.24024498]
[1625673730384,0.24057544,34515.0,34512.0,1.01852379]
[1625673730682,0.24057544,34515.0,34514.0,0.48115088]
[1625673730821,0.24057544,34515.0,34514.0,0.76532088]
[1625673731651,0.16762641,34518.0,34514.0,1.78385463]
[1625673731953,0.16762641,34518.0,34515.0,1.018526]
[1625673732249,0.40824555,34519.0,34516.0,1.01849517]
[1625673732699,0.16767011,34519.0,34518.0,0.24057544]
[1625673732852,0.16773661,34520.0,34518.0,0.24057544]
[1625673733151,0.057,34521.0,34519.0,4.56065666]
[1625673733299,0.40814171,34522.0,34519.0,4.56065666]
[1625673733450,0.24057544,34522.0,34519.0,4.3911]
[1625673733599,0.16762837,34523.0,34519.0,4.3911]
[1625673733911,0.9835613,34526.0,34519.0,4.3911]
[1625673734052,0.16764159,34524.0,34521.0,0.16954722]
[1625673734211,0.95120289,34526.0,34521.0,0.39774722]
[1625673734652,1.17318737,34534.0,34522.0,1.68660118]
[1625673734821,1.17318737,34534.0,34525.0,0.72172632]
[1625673734956,1.17553221,34542.0,34531.0,1.18636247]
[1625673735107,1.17367524,34549.0,34532.0,1.1833857]
[1625673735558,1.23040743,34548.0,34531.0,1.46232648]
[1625673735704,1.23040743,34548.0,34536.0,4.1781]
[1625673736603,1.17259672,34547.0,34536.0,4.1781]
[1625673736766,0.057,34546.0,34545.0,0.24057544]
[1625673737512,0.057,34546.0,34534.0,4.8142]
[1625673737667,0.057,34546.0,34524.0,1.34986193]
[1625673737668,0.38078,34546.0,34525.0,1.18114801]
[1625673737954,0.38078,34546.0,34523.0,1.1812061]
[1625673737955,1.1683247,34545.0,34523.0,1.1812061]
[1625673738104,0.057,34544.0,34523.0,1.1812061]
[1625673738253,0.001,34531.0,34523.0,1.1812061]
[1625673738414,0.001,34531.0,34518.0,1.51969356]
[1625673738415,0.21689,34531.0,34520.0,1.18009695]
[1625673738643,0.21689,34531.0,34519.0,5.57119774]
[1625673738781,0.21689,34531.0,34530.0,0.24057544]
[1625673739679,0.058,34531.0,34530.0,0.24057544]
[1625673741263,0.001,34531.0,34530.0,0.24057544]
[1625673747339,0.057,34533.0,34530.0,0.24057544]
[1625673747942,0.24057544,34534.0,34530.0,0.24057544]
[1625673748092,0.057,34533.0,34530.0,0.24057544]
[1625673749221,0.057,34533.0,34529.0,0.001]
[1625673750796,0.48115088,34530.0,34529.0,0.001]
[1625673750946,0.79244088,34530.0,34529.0,0.001]
[1625673753440,0.53815088,34530.0,34529.0,0.001]
[1625673756356,0.53815088,34530.0,34528.0,0.001]
[1625673756807,0.77872632,34530.0,34528.0,0.001]
[1625673768371,0.77872632,34530.0,34527.0,0.001]
[1625673768675,0.0130959,34529.0,34527.0,0.001]
[1625673769426,0.77872632,34530.0,34527.0,0.001]
[1625673770476,0.01309662,34529.0,34527.0,0.001]
[1625673774390,0.23404662,34529.0,34518.0,0.33740895]
[1625673774538,0.38851248,34528.0,34517.0,0.003]
[1625673774687,0.88851248,34528.0,34517.0,0.003]
[1625673774859,0.33106803,34523.0,34517.0,0.003]
[1625673774990,0.72172632,34518.0,34517.0,0.003]
[1625673775136,1.06671632,34518.0,34517.0,0.003]
[1625673776038,1.06671632,34518.0,34517.0,0.00803479]
[1625673776188,0.77872632,34518.0,34517.0,0.003]
[1625673776490,0.77872632,34518.0,34517.0,0.34631059]
[1625673776788,0.77872632,34518.0,34517.0,0.00803426]
[1625673777389,0.77872632,34518.0,34517.0,0.00503426]
[1625673777689,0.77872632,34518.0,34517.0,0.34338289]
[1625673777989,0.77872632,34518.0,34517.0,0.00503426]
[1625673778588,0.77872632,34518.0,34517.0,0.34378822]
[1625673778893,0.77872632,34518.0,34517.0,0.00503426]
[1625673779645,0.77872632,34518.0,34517.0,0.34383403]
[1625673780240,0.77872632,34518.0,34517.0,0.00503426]
[1625673780543,0.72172632,34518.0,34517.0,0.00503426]
[1625673780844,0.72172632,34518.0,34517.0,1.02134428]
[1625673782721,0.72172632,34518.0,34517.0,2.20719197]
[1625673782867,0.72172632,34518.0,34517.0,3.56376159]
[1625673783018,0.48115088,34518.0,34517.0,3.80433703]
[1625673784071,0.3901252,34527.0,34517.0,3.80433703]
[1625673784379,0.34673933,34526.0,34523.0,1.01864194]
[1625673784521,0.34673933,34526.0,34523.0,1.29192194]
[1625673784672,0.24057544,34529.0,34525.0,2.20689306]
[1625673784896,0.24057544,34529.0,34528.0,1.01854933]
[1625673785047,0.24057544,34529.0,34528.0,6.10982477]
[1625673785496,0.24057544,34529.0,34528.0,6.11485735]
[1625673786021,0.24057544,34529.0,34528.0,6.7938829]
[1625673786396,0.24057544,34529.0,34528.0,7.98277309]
[1625673786850,0.24057544,34529.0,34528.0,9.34140721]
[1625673787146,0.24057544,34529.0,34528.0,4.49070721]
[1625673787297,0.29757544,34529.0,34528.0,1.9431829]
[1625673787598,0.63167522,34529.0,34528.0,0.92463357]
[1625673787828,0.29757544,34529.0,34528.0,1.94365116]
[1625673788275,0.63177981,34529.0,34528.0,1.94365116]
[1625673788576,0.96564941,34529.0,34528.0,0.92463357]
[1625673788725,0.96564941,34529.0,34528.0,0.24560802]
[1625673788949,0.29757544,34529.0,34528.0,0.92522945]
[1625673789252,0.29757544,34529.0,34528.0,1.94465602]
[1625673789253,0.63184621,34529.0,34528.0,1.94465602]
[1625673790303,0.79888243,34529.0,34528.0,2.4544033]
[1625673790452,1.13325445,34529.0,34528.0,2.4544033]
[1625673792329,1.13325445,34529.0,34528.0,2.44937072]
[1625673792481,1.46740319,34529.0,34528.0,2.44937072]
[1625673792932,0.79888243,34529.0,34528.0,2.44937072]
[1625673793306,1.46743082,34529.0,34528.0,2.44937072]
[1625673793757,0.79888243,34529.0,34528.0,2.44937072]
[1625673793911,0.79888243,34529.0,34528.0,2.76784072]
[1625673794057,1.4680143,34529.0,34528.0,2.76784072]
[1625673794956,1.4680143,34529.0,34528.0,2.44937072]
[1625673795107,1.4680143,34529.0,34528.0,2.20879528]
[1625673796083,1.4680143,34529.0,34528.0,2.21382847]
[1625673796236,0.79888243,34529.0,34528.0,2.21382847]
[1625673796384,1.13416807,34529.0,34528.0,3.40401125]
[1625673796611,1.4696308,34529.0,34528.0,3.40401125]
[1625673797890,0.79888243,34529.0,34528.0,3.40401125]
[1625673798038,1.46960666,34529.0,34528.0,3.40401125]
[1625673798190,1.46960666,34529.0,34528.0,3.39897806]
[1625673799239,1.46960666,34529.0,34528.0,2.20879528]
[1625673799916,1.46960666,34529.0,34528.0,3.39947312]
[1625673800218,1.41260666,34529.0,34528.0,3.39947312]
[1625673800589,1.46960666,34529.0,34528.0,3.39947312]
[1625673800738,1.46960666,34529.0,34528.0,2.20879528]
[1625673800889,1.46960666,34529.0,34528.0,3.39956542]
[1625673801039,1.41260666,34529.0,34528.0,3.73169542]
[1625673801190,0.74188243,34529.0,34528.0,3.73672912]
[1625673801499,0.57607544,34529.0,34528.0,5.09756087]
[1625673801643,0.24057544,34529.0,34528.0,5.09756087]
[1625673804500,0.24057544,34529.0,34528.0,9.51346087]
[1625673807202,0.24057544,34529.0,34528.0,11.04425006]
[1625673808344,0.948,34533.0,34528.0,11.04425006]
[1625673808629,0.948,34533.0,34532.0,4.76110264]
[1625673809085,0.948,34533.0,34532.0,5.24728584]
[1625673809378,0.948,34533.0,34532.0,6.777571]
[1625673809829,0.001,34534.0,34532.0,6.777571]
[1625673810282,0.33602991,34538.0,34533.0,6.29601072]
[1625673810429,0.84183676,34539.0,34537.0,3.39885714]
[1625673810578,0.84183676,34539.0,34537.0,3.66069714]
[1625673810729,0.33787586,34539.0,34538.0,3.39881931]
[1625673810882,0.33787586,34539.0,34538.0,3.40385177]
[1625673811179,0.33787586,34539.0,34538.0,3.64442721]
[1625673811331,0.84174962,34539.0,34538.0,3.64442721]
[1625673811479,0.50587376,34539.0,34538.0,3.64442721]
[1625673811705,0.56287376,34539.0,34538.0,3.64442721]
[1625673811857,0.50587376,34539.0,34538.0,3.64442721]
[1625673812304,0.50587376,34539.0,34538.0,2.45484045]
[1625673812468,1.17736457,34539.0,34538.0,2.45484045]
[1625673812903,0.50587376,34539.0,34538.0,2.45484045]
[1625673813204,0.50587376,34539.0,34520.0,0.0879]
[1625673813355,0.001,34534.0,34517.0,0.003]
[1625673813507,0.33646781,34534.0,34521.0,1.69901816]
[1625673813655,0.33646781,34534.0,34528.0,0.00502558]
[1625673813817,0.01310632,34533.0,34529.0,0.33984834]
[1625673814258,0.01310632,34533.0,34528.0,0.33987179]
[1625673814560,0.01310632,34533.0,34529.0,0.33989625]
[1625673814708,0.07010632,34533.0,34528.0,0.33990405]
[1625673815083,0.01310755,34532.0,34528.0,0.33990405]
[1625673815235,0.72172632,34529.0,34528.0,0.33990405]
[1625673815392,0.77872632,34529.0,34528.0,0.33990405]
[1625673816434,0.77872632,34529.0,34518.0,3.8671]
[1625673817125,0.77872632,34529.0,34528.0,0.33990523]
[1625673817942,0.77872632,34529.0,34518.0,3.8671]
[1625673819135,0.24057544,34528.0,34518.0,3.8671]
[1625673819441,0.24057544,34528.0,34518.0,5.56657806]
[1625673819588,0.24057544,34528.0,34527.0,0.00602579]
[1625673819890,0.24057544,34528.0,34527.0,0.001]
[1625673820037,0.29757544,34528.0,34527.0,0.0060262]
[1625673820792,0.63257406,34528.0,34527.0,0.0060262]
[1625673820945,0.29757544,34528.0,34527.0,0.0060262]
[1625673821243,0.63261611,34528.0,34527.0,0.0060262]
[1625673822445,0.29757544,34528.0,34527.0,0.0060262]
[1625673822596,0.29757544,34528.0,34527.0,0.001]
[1625673823197,0.29757544,34528.0,34527.0,0.00602176]
[1625673823346,0.29757544,34528.0,34527.0,0.001]
[1625673823646,0.29757544,34528.0,34527.0,0.00602182]
[1625673825902,0.29757544,34528.0,34527.0,0.001]
[1625673826347,0.29757544,34528.0,34527.0,0.00602176]
[1625673826807,0.63255936,34528.0,34527.0,0.00602176]
[1625673828676,0.29757544,34528.0,34527.0,0.00602176]
[1625673828976,0.6325365,34528.0,34527.0,0.00602176]
[1625673829276,0.6325365,34528.0,34527.0,0.00502176]
[1625673829801,0.5755365,34528.0,34527.0,0.00502176]
[1625673829952,0.24057544,34528.0,34527.0,0.00502176]
[1625673830251,0.24057544,34528.0,34527.0,1.36502539]
[1625673833330,0.29757544,34528.0,34527.0,2.55520506]
[1625673833632,0.63282724,34528.0,34527.0,1.19520143]
[1625673834241,0.29757544,34528.0,34527.0,1.19017967]
[1625673834382,0.29757544,34528.0,34527.0,1.46814268]
[1625673834684,0.29757544,34528.0,34527.0,1.44814268]
[1625673835808,0.29757544,34528.0,34527.0,1.17520268]
[1625673838145,0.62616544,34528.0,34527.0,1.17520268]
[1625673838292,0.62616544,34528.0,34527.0,0.00502301]
[1625673838436,0.62616544,34528.0,34526.0,0.001]
[1625673838599,1.97904609,34528.0,34526.0,0.34143425]
[1625673838737,1.33911487,34527.0,34526.0,0.001]
[1625673838889,1.40923077,34527.0,34526.0,0.001]
[1625673839037,2.91521178,34527.0,34526.0,0.001]
[1625673842424,4.58529166,34527.0,34526.0,0.001]
[1625673842939,5.08529166,34527.0,34526.0,0.001]
[1625673843099,4.58529166,34527.0,34526.0,0.001]
[1625673843393,3.91772987,34527.0,34526.0,0.001]
[1625673843842,5.58763235,34527.0,34526.0,0.001]
[1625673843994,5.58763235,34527.0,34512.0,0.86235835]
[1625673844158,6.6218084,34527.0,34509.0,1.36141988]
[1625673844293,1.4990155,34515.0,34506.0,0.2929]
[1625673844445,0.557,34514.0,34505.0,0.005]
[1625673844592,1.49855699,34513.0,34505.0,0.005]
[1625673844743,2.05484566,34512.0,34505.0,0.005]
[1625673845043,1.49690479,34509.0,34505.0,0.005]
[1625673845193,0.557,34508.0,34505.0,0.005]
[1625673845353,6.01690176,34506.0,34505.0,0.005]
[1625673845495,6.07390176,34506.0,34505.0,0.005]
[1625673847296,6.07390176,34506.0,34503.0,0.001]
[1625673852486,1.01930176,34506.0,34503.0,0.001]
[1625673854130,1.25430176,34506.0,34503.0,0.001]
[1625673856383,1.25430176,34506.0,34501.0,0.001]
[1625673857434,0.24057544,34502.0,34501.0,0.001]
[1625673857584,0.29757544,34502.0,34501.0,0.001]
[1625673864722,0.59612544,34502.0,34501.0,0.001]
[1625673865322,0.59612544,34502.0,34499.0,0.001]
[1625673865623,0.48115088,34500.0,34499.0,0.001]
[1625673865772,0.53815088,34500.0,34499.0,0.001]
[1625673867498,0.53815088,34500.0,34499.0,0.00602871]
[1625673868547,0.80876088,34500.0,34499.0,0.00602871]
[1625673869829,0.75176088,34500.0,34499.0,0.00602871]
[1625673869976,0.53815088,34500.0,34499.0,0.00602871]
[1625673870137,0.48115088,34500.0,34499.0,0.00602871]
[1625673871258,0.48115088,34500.0,34499.0,0.27152871]
[1625673872453,0.53815088,34500.0,34499.0,0.00602871]
[1625673872902,0.48115088,34500.0,34499.0,0.00602871]
[1625673873064,0.53815088,34500.0,34499.0,0.00602871]
[1625673873590,0.48115088,34500.0,34499.0,0.00602871]
[1625673875528,0.53815088,34500.0,34499.0,0.00602871]
[1625673877342,0.53815088,34500.0,34499.0,0.00502871]
[1625673878535,0.48115088,34500.0,34499.0,0.00502871]
[1625673879963,0.53815088,34500.0,34499.0,0.00502871]
[1625673880114,0.53815088,34500.0,34499.0,0.08956247]
[1625673880564,0.53815088,34500.0,34499.0,0.00502871]
[1625673880868,0.53815088,34500.0,34499.0,0.08957443]
[1625673881015,0.48115088,34500.0,34499.0,0.08957443]
[1625673881315,0.48115088,34500.0,34499.0,0.00502871]
[1625673881840,0.48115088,34500.0,34499.0,0.08958871]
[1625673881841,0.81232088,34500.0,34499.0,0.08958871]
[1625673882066,0.81232088,34500.0,34499.0,0.00502871]
[1625673883643,0.8254564,34500.0,34499.0,0.00502871]
[1625673883943,0.81232088,34500.0,34499.0,0.00502871]
[1625673885297,0.82545634,34500.0,34499.0,0.00502871]
[1625673887856,0.81232088,34500.0,34499.0,0.00502871]
[1625673888454,0.75532088,34500.0,34499.0,0.00502871]
[1625673889505,0.48115088,34500.0,34499.0,0.00502871]
[1625673890099,0.81175088,34500.0,34499.0,0.00502871]
[1625673890260,5.65575088,34500.0,34499.0,0.00502871]
[1625673890630,5.66887777,34500.0,34499.0,0.00502871]
[1625673890924,5.66887777,34500.0,34498.0,0.00502668]
[1625673891151,5.66887777,34500.0,34499.0,0.00502668]
[1625673891525,5.61187777,34500.0,34498.0,0.00502475]
[1625673891826,5.61187777,34500.0,34499.0,0.00502465]
[1625673891982,5.59875088,34500.0,34499.0,0.00502465]
[1625673892279,5.61188262,34500.0,34498.0,0.08983501]
[1625673892433,5.61188262,34500.0,34498.0,0.25945552]
[1625673892580,5.59875088,34500.0,34499.0,0.259447]
[1625673893326,5.59875088,34500.0,34499.0,0.00502443]
[1625673893628,5.59875088,34500.0,34499.0,0.08984214]
[1625673894078,5.65575088,34500.0,34499.0,0.00502443]
[1625673894384,5.91780427,34500.0,34499.0,0.08992414]
[1625673894904,5.91780427,34500.0,34499.0,0.00502443]
[1625673895202,5.91780427,34500.0,34499.0,0.08992414]
[1625673895656,5.83477513,34500.0,34499.0,0.00502443]
[1625673895805,5.83477513,34500.0,34499.0,0.08992874]
[1625673895806,5.91780105,34500.0,34499.0,0.08992874]
[1625673895953,5.90466936,34500.0,34499.0,0.08992874]
[1625673896111,5.90466936,34500.0,34499.0,0.25973715]
[1625673896402,5.90466936,34500.0,34499.0,0.68511423]
[1625673896403,5.65575088,34500.0,34499.0,0.68511423]
[1625673898290,7.31875857,34500.0,34499.0,1.70713407]
[1625673900307,8.48377673,34500.0,34499.0,2.90061085]
[1625673902866,3.69677673,34500.0,34499.0,2.90061085]
[1625673903168,4.19627456,34500.0,34499.0,3.41210315]
[1625673903917,4.20940613,34500.0,34499.0,2.21862637]
[1625673904069,7.97970613,34500.0,34499.0,2.21862637]
[1625673904217,9.31294271,34500.0,34499.0,3.41324707]
[1625673904898,7.97970613,34500.0,34499.0,3.41324707]
[1625673905269,9.31289115,34500.0,34499.0,3.41324707]
[1625673908500,5.54259115,34500.0,34499.0,3.41324707]
[1625673908652,5.54259115,34500.0,34499.0,3.74165707]
[1625673908804,3.04438797,34500.0,34499.0,5.10680533]
[1625673908956,2.9742564,34500.0,34499.0,5.10680533]
[1625673909252,1.97648504,34500.0,34499.0,5.10680533]
[1625673909402,1.64588504,34500.0,34499.0,5.10680533]
[1625673909702,1.64588504,34500.0,34499.0,6.64243644]
[1625673910017,0.98064871,34500.0,34499.0,6.64243644]
[1625673910303,1.6482292,34500.0,34499.0,6.64243644]
[1625673910678,1.6482292,34500.0,34499.0,5.10680533]
[1625673912106,1.6482292,34500.0,34499.0,6.64242186]
[1625673912707,0.7321819,34500.0,34499.0,6.64242186]
[1625673912858,0.48115088,34500.0,34499.0,6.64242186]
[1625673914592,0.53815088,34500.0,34499.0,6.64242186]
[1625673914734,0.53815088,34500.0,34499.0,6.31401186]
[1625673914884,1.70859923,34500.0,34499.0,4.77839533]
[1625673915033,1.66473041,34500.0,34499.0,4.77839533]
[1625673915195,5.17115217,34500.0,34499.0,2.21862637]
[1625673915485,5.17115217,34500.0,34499.0,1.19660653]
[1625673915486,5.22815217,34500.0,34499.0,1.19660653]
[1625673915634,5.22815217,34500.0,34499.0,1.1915821]
[1625673915785,6.72943771,34500.0,34499.0,0.17062857]
[1625673915936,11.82053771,34500.0,34499.0,0.17062857]
[1625673916158,11.82053771,34500.0,34499.0,0.25591873]